fUSD/lending_fUSD_20250506
["ID","MTS","AMOUNT","RATE_DAILY","PERIOD"]
[360044669,1746514245982,-450.0,0.00019998,2]
[360044670,1746514245992,-450.0,0.00019998,2]
[360044671,1746514246001,-450.0,0.00019998,2]
[360044672,1746514246011,-450.0,0.00019998,2]
[360044673,1746514246020,-450.0,0.00019998,2]
[360044674,1746514246031,-450.0,0.00019998,2]
[360044675,1746514246041,-450.0,0.00019998,2]
[360044676,1746514246050,-450.0,0.00019998,2]
[360044677,1746514246059,-450.0,0.00019998,2]
[360044678,1746514246068,-450.0,0.00019998,2]
[360044679,1746514246078,-450.0,0.00019998,2]
[360044680,1746514246087,-207.67752259,0.00019998,2]
[360044681,1746514246097,-450.0,0.00019998,2]
[360044682,1746514246106,-450.0,0.00019998,2]
[360044683,1746514246117,-450.0,0.00019998,2]
[360044684,1746514246126,-246.96321116,0.00019998,2]
[360044685,1746514246135,-450.0,0.00019998,2]
[360044686,1746514246145,-450.0,0.00019998,2]
[360044687,1746514246156,-423.11338859,0.00019998,2]
[360044688,1746514246165,-461.0000001,0.00019998,2]
[360044689,1746514246175,-489.96195882,0.00019998,2]
[360044690,1746514246184,-356.22829565,0.00019998,2]
[360044691,1746514246193,-450.0,0.00019998,2]
[360044692,1746514246202,-450.0,0.00019998,2]
[360044693,1746514246212,-450.0,0.00019998,2]
[360044694,1746514246221,-171.28049106,0.00019998,2]
[360044695,1746514246230,-450.0,0.00019998,2]
[360044696,1746514246240,-450.0,0.00019998,2]
[360044697,1746514246249,-380.59086615,0.00019998,2]
[360044698,1746514246258,-450.0,0.00019998,2]
[360044699,1746514246268,-450.0,0.00019998,2]
[360044700,1746514246277,-450.0,0.00019998,2]
[360044701,1746514246287,-450.0,0.00019998,2]
[360044702,1746514246296,-450.0,0.00019998,2]
[360044703,1746514246306,-450.0,0.00019998,2]
[360044704,1746514246315,-450.0,0.00019998,2]
[360044705,1746514246324,-312.82090501,0.00019998,2]
[360044706,1746514246334,-450.0,0.00019998,2]
[360044707,1746514246343,-506.73225743,0.00019998,2]
[360044708,1746514246353,-580.63144996,0.00019998,2]
[360044709,1746514246362,-451.91301683,0.00019998,2]
[360044710,1746514246371,-450.0,0.00019998,2]
[360044711,1746514246380,-450.0,0.00019998,2]
[360044712,1746514246390,-450.0,0.00019998,2]
[360044714,1746514246399,-450.0,0.00019998,2]
[360044716,1746514246409,-490.28766509,0.00019998,2]
[360044717,1746514246418,-553.17600041,0.00019998,2]
[360044720,1746514246428,-450.0,0.00019998,2]
[360044723,1746514246437,-450.0,0.00019998,2]
[360044726,1746514246446,-450.0,0.00019998,2]
[360044729,1746514246455,-450.0,0.00019998,2]
[360044731,1746514246465,-450.0,0.00019998,2]
[360044734,1746514246475,-450.0,0.00019998,2]
[360044737,1746514246484,-349.52253887,0.00019998,2]
[360044740,1746514246494,-255.98716498,0.00019998,2]
[360044743,1746514246503,-450.0,0.00019998,2]
[360044744,1746514246513,-450.0,0.00019998,2]
[360044745,1746514246523,-450.0,0.00019998,2]
[360044746,1746514246533,-515.24663202,0.00019998,2]
[360044747,1746514246544,-450.0,0.00019998,2]
[360044748,1746514246554,-297.47,0.00019998,2]
[360044749,1746514246563,-450.0,0.00019998,2]
[360044750,1746514246573,-450.0,0.00019998,2]
[360044751,1746514246583,-450.0,0.00019998,2]
[360044752,1746514246592,-450.0,0.00019998,2]
[360044753,1746514246601,-450.0,0.00019998,2]
[360044754,1746514246612,-450.0,0.00019998,2]
[360044755,1746514246622,-450.0,0.00019998,2]
[360044756,1746514246632,-450.0,0.00019998,2]
[360044757,1746514246641,-432.28836219,0.00019998,2]
[360044758,1746514246651,-450.0,0.00019998,2]
[360044759,1746514246661,-180.06924665,0.00019998,2]
[360044760,1746514246674,-484.84933212,0.00019998,2]
[360044761,1746514246683,-450.0,0.00019998,2]
[360044762,1746514246694,-450.0,0.00019998,2]
[360044763,1746514246705,-450.0,0.00019998,2]
[360044764,1746514246716,-166.01937314,0.00019998,2]
[360044765,1746514246725,-450.0,0.00019998,2]
[360044766,1746514246735,-450.0,0.00019998,2]
[360044767,1746514246745,-450.0,0.00019998,2]
[360044768,1746514246754,-450.0,0.00019998,2]
[360044769,1746514246771,-450.0,0.00019998,2]
[360044770,1746514246785,-2389.83,0.00019998,2]
[360044771,1746514246799,-2389.83,0.00019998,2]
[360044772,1746514246810,-500.0,0.00019998,2]
[360044773,1746514246821,-152.04642897,0.00019998,2]
[360044774,1746514246835,-150.0,0.00019998,2]
[360044775,1746514246848,-500.0,0.00019998,2]
[360044776,1746514246861,-450.0,0.00019998,2]
[360044777,1746514246874,-450.0,0.00019998,2]
[360044778,1746514246888,-183.23719913,0.00019998,2]
[360044779,1746514246901,-450.0,0.00019998,2]
[360044780,1746514246913,-450.0,0.00019998,2]
[360044781,1746514246925,-150.0,0.00019998,2]
[360044782,1746514246938,-456.31,0.00019998,2]
[360044783,1746514246948,-450.0,0.00019998,2]
[360044784,1746514246961,-450.0,0.00019998,2]
[360044785,1746514246973,-450.0,0.00019998,2]
[360044786,1746514246986,-5792.06,0.00019998,2]
[360044787,1746514246999,-503.64430949,0.00019998,2]
[360044788,1746514247012,-450.0,0.00019998,2]
[360044789,1746514247025,-450.0,0.00019998,2]
[360044790,1746514247038,-210.20511169,0.00019998,2]
[360044791,1746514247051,-676.79,0.00019998,2]
[360044792,1746514247063,-676.79,0.00019998,2]
[360044793,1746514247076,-676.79,0.00019998,2]
[360044794,1746514247088,-450.0,0.00019998,2]
[360044795,1746514247101,-450.0,0.00019998,2]
[360044796,1746514247113,-450.0,0.00019998,2]
[360044797,1746514247126,-450.0,0.00019998,2]
[360044798,1746514247138,-450.0,0.00019998,2]
[360044799,1746514247150,-450.0,0.00019998,2]
[360044800,1746514247163,-300.0,0.00019999,2]
[360044801,1746514247176,-300.0,0.00019999,2]
[360044802,1746514247188,-669.89624627,0.00019999,2]
[360044803,1746514247200,-300.0,0.00019999,2]
[360044804,1746514247212,-151.0,0.00019999,2]
[360044805,1746514247222,-151.0,0.00019999,2]
[360044806,1746514247233,-151.0,0.00019999,2]
[360044807,1746514247244,-517.537369,0.00019999,2]
[360044808,1746514247257,-151.0,0.00019999,2]
[360044809,1746514247271,-517.537369,0.00019999,2]
[360044810,1746514247282,-151.0,0.00019999,2]
[360044811,1746514247293,-167.040254,0.00019999,2]
[360044812,1746514247303,-151.0,0.00019999,2]
[360044813,1746514247314,-151.0,0.00019999,2]
[360044814,1746514247325,-151.0,0.00019999,2]
[360044815,1746514247339,-151.0,0.00019999,2]
[360044816,1746514247352,-151.0,0.00019999,2]
[360044817,1746514247363,-200.0,0.00019999,2]
[360044818,1746514247374,-151.877841,0.00019999,2]
[360044819,1746514247384,-324.992865,0.00019999,2]
[360044820,1746514247395,-324.992865,0.00019999,2]
[360044821,1746514247406,-153.831246,0.00019999,2]
[360044822,1746514247417,-154.104446,0.00019999,2]
[360044823,1746514247428,-151.0,0.00019999,2]
[360044824,1746514247439,-450.0,0.00019999,2]
[360044825,1746514247450,-450.0,0.00019999,2]
[360044826,1746514247462,-450.0,0.00019999,2]
[360044827,1746514247473,-450.0,0.00019999,2]
[360044828,1746514247484,-450.0,0.00019999,2]
[360044829,1746514247496,-267.82,0.00019999,2]
[360044830,1746514247507,-259.09643932,0.00019999,2]
[360044831,1746514247519,-544.220522,0.00019999,2]
[360044832,1746514247530,-544.220522,0.00019999,2]
[360044833,1746514247541,-450.0,0.00019999,2]
[360044834,1746514247553,-450.0,0.00019999,2]
[360044835,1746514247564,-256.68878309,0.00019999,2]
[360044836,1746514247576,-450.0,0.00019999,2]
[360044837,1746514247587,-450.0,0.00019999,2]
[360044838,1746514247599,-450.0,0.00019999,2]
[360044839,1746514247610,-599.65746,0.00019999,2]
[360044840,1746514247622,-151.360372,0.00019999,2]
[360044841,1746514247633,-157.602835,0.00019999,2]
[360044842,1746514247645,-202.631679,0.00019999,2]
[360044843,1746514247657,-445.90349874,0.00019999,2]
[360044844,1746514247668,-202.631679,0.00019999,2]
[360044845,1746514247679,-215.905889,0.00019999,2]
[360044846,1746514247691,-151.0,0.00019999,2]
[360044847,1746514247706,-152.486184,0.00019999,2]
[360044848,1746514247717,-151.0,0.00019999,2]
[360044849,1746514247729,-450.0,0.00019999,2]
[360044850,1746514247740,-450.0,0.00019999,2]
[360044851,1746514247752,-450.0,0.00019999,2]
[360044852,1746514247764,-450.0,0.00019999,2]
[360044853,1746514247775,-450.0,0.00019999,2]
[360044854,1746514247787,-450.0,0.00019999,2]
[360044855,1746514247799,-450.0,0.00019999,2]
[360044856,1746514247810,-450.0,0.00019999,2]
[360044857,1746514247821,-450.0,0.00019999,2]
[360044858,1746514247832,-450.0,0.00019999,2]
[360044859,1746514247843,-450.0,0.00019999,2]
[360044860,1746514247855,-450.0,0.00019999,2]
[360044861,1746514247866,-450.0,0.00019999,2]
[360044862,1746514247878,-450.0,0.00019999,2]
[360044863,1746514247889,-344.93,0.00019999,2]
[360044864,1746514247901,-151.0,0.00019999,2]
[360044865,1746514247913,-450.0,0.00019999,2]
[360044866,1746514247924,-450.0,0.00019999,2]
[360044867,1746514247936,-450.0,0.00019999,2]
[360044868,1746514247948,-450.0,0.00019999,2]
[360044869,1746514247959,-450.0,0.00019999,2]
[360044870,1746514247971,-450.0,0.00019999,2]
[360044871,1746514247983,-450.0,0.00019999,2]
[360044872,1746514247995,-450.0,0.00019999,2]
[360044873,1746514248008,-199.78326007,0.00019999,2]
[360044874,1746514248019,-151.0,0.00019999,2]
[360044875,1746514248031,-151.0,0.00019999,2]
[360044876,1746514248043,-151.0,0.00019999,2]
[360044877,1746514248055,-300.93357,0.00019999,2]
[360044878,1746514248068,-450.0,0.00019999,2]
[360044879,1746514248080,-173.428891,0.00019999,2]
[360044880,1746514248092,-173.428891,0.00019999,2]
[360044881,1746514248104,-450.0,0.00019999,2]
[360044882,1746514248115,-450.0,0.00019999,2]
[360044883,1746514248127,-450.0,0.00019999,2]
[360044884,1746514248139,-450.0,0.00019999,2]
[360044885,1746514248150,-450.0,0.00019999,2]
[360044886,1746514248162,-450.0,0.00019999,2]
[360044887,1746514248174,-450.0,0.00019999,2]
[360044888,1746514248186,-450.0,0.00019999,2]
[360044889,1746514248197,-450.0,0.00019999,2]
[360044890,1746514248209,-450.0,0.00019999,2]
[360044891,1746514248221,-375.47400811,0.00019999,2]
[360044892,1746514248233,-542.50145534,0.00019999,2]
[360044893,1746514248244,-166.267079,0.00019999,2]
[360044894,1746514248255,-151.0,0.00019999,2]
[360044895,1746514248267,-151.0,0.00019999,2]
[360044896,1746514248279,-554.15,0.00019999,2]
[360044897,1746514248291,-151.0,0.00019999,2]
[360044898,1746514248303,-151.0,0.00019999,2]
[360044899,1746514248315,-151.0,0.00019999,2]
[360044900,1746514248327,-151.0,0.00019999,2]
[360044901,1746514248338,-151.0,0.00019999,2]
[360044902,1746514248351,-151.0,0.00019999,2]
[360044903,1746514248535,-151.0,0.00019999,2]
[360044904,1746514248547,-151.0,0.00019999,2]
[360044905,1746514248557,-151.0,0.00019999,2]
[360044906,1746514248567,-450.0,0.00019999,2]
[360044907,1746514248576,-450.0,0.00019999,2]
[360044908,1746514248585,-450.0,0.00019999,2]
[360044909,1746514248595,-450.0,0.00019999,2]
[360044910,1746514248604,-450.0,0.00019999,2]
[360044911,1746514248614,-483.73890375,0.00019999,2]
[360044912,1746514248624,-151.564757,0.00019999,2]
[360044913,1746514248634,-450.0,0.00019999,2]
[360044914,1746514248643,-450.0,0.00019999,2]
[360044915,1746514248652,-450.0,0.00019999,2]
[360044916,1746514248662,-455.69095936,0.00019999,2]
[360044917,1746514248671,-450.0,0.00019999,2]
[360044918,1746514248681,-159.8172007,0.00019999,2]
[360044919,1746514248690,-450.0,0.00019999,2]
[360044920,1746514248700,-1757.41,0.00019999,2]
[360044921,1746514248712,-1757.41,0.00019999,2]
[360044922,1746514248722,-1757.41,0.00019999,2]
[360044923,1746514248731,-1757.41,0.00019999,2]
[360044924,1746514248740,-1757.41,0.00019999,2]
[360044925,1746514248750,-1757.41,0.00019999,2]
[360044926,1746514248759,-1757.41,0.00019999,2]
[360044927,1746514248769,-1757.41,0.00019999,2]
[360044928,1746514248778,-1757.41,0.00019999,2]
[360044929,1746514248787,-1757.41,0.00019999,2]
[360044930,1746514248797,-1757.41,0.00019999,2]
[360044931,1746514248807,-1757.41,0.00019999,2]
[360044932,1746514248816,-1757.41,0.00019999,2]
[360044933,1746514248826,-1757.41,0.00019999,2]
[360044934,1746514248836,-450.0,0.00019999,2]
[360044935,1746514248845,-1757.41,0.00019999,2]
[360044936,1746514248855,-1757.41,0.00019999,2]
[360044937,1746514248865,-1757.41,0.00019999,2]
[360044938,1746514248874,-1757.41,0.00019999,2]
[360044939,1746514248884,-1757.41,0.00019999,2]
[360044940,1746514248894,-1757.41,0.00019999,2]
[360044941,1746514248903,-151.0,0.00019999,2]
[360044942,1746514248913,-1757.60076391,0.00019999,2]
[360044943,1746514248923,-2109.75,0.00019999,2]
[360044944,1746514248933,-151.0,0.00019999,2]
[360044945,1746514248942,-2109.75,0.00019999,2]
[360044946,1746514248953,-2109.75,0.00019999,2]
[360044947,1746514248963,-151.0,0.00019999,2]
[360044948,1746514248972,-2109.75,0.00019999,2]
[360044949,1746514248982,-2109.75,0.00019999,2]
[360044950,1746514248992,-151.0,0.00019999,2]
[360044951,1746514249002,-2109.75,0.00019999,2]
[360044952,1746514249011,-2109.75,0.00019999,2]
[360044953,1746514249021,-2109.75,0.00019999,2]
[360044954,1746514249031,-2109.75,0.00019999,2]
[360044955,1746514249047,-2109.75,0.00019999,2]
[360044956,1746514249057,-2109.75,0.00019999,2]
[360044957,1746514249066,-2109.75,0.00019999,2]
[360044958,1746514249076,-2109.75,0.00019999,2]
[360044959,1746514249085,-2109.75,0.00019999,2]
[360044960,1746514249094,-2109.75,0.00019999,2]
[360044961,1746514249104,-450.0,0.00019999,2]
[360044962,1746514249113,-325.89008284,0.00019999,2]
[360044963,1746514249122,-2109.75,0.00019999,2]
[360044964,1746514249131,-2109.75,0.00019999,2]
[360044965,1746514249140,-2109.75,0.00019999,2]
[360044966,1746514249150,-2109.75,0.00019999,2]
[360044967,1746514249159,-2109.77317805,0.00019999,2]
[360044968,1746514249168,-611.56,0.00019999,2]
[360044969,1746514249177,-611.56,0.00019999,2]
[360044970,1746514249186,-890.52,0.00019999,2]
[360044971,1746514249195,-611.56,0.00019999,2]
[360044972,1746514249204,-611.56,0.00019999,2]
[360044973,1746514249214,-890.52,0.00019999,2]
[360044974,1746514249223,-611.56,0.00019999,2]
[360044975,1746514249232,-890.52,0.00019999,2]
[360044976,1746514249242,-611.56,0.00019999,2]
[360044977,1746514249252,-890.52,0.00019999,2]
[360044978,1746514249261,-611.56,0.00019999,2]
[360044979,1746514249271,-890.52,0.00019999,2]
[360044980,1746514249280,-611.56,0.00019999,2]
[360044981,1746514249289,-890.52,0.00019999,2]
[360044982,1746514249299,-611.56,0.00019999,2]
[360044983,1746514249308,-890.52,0.00019999,2]
[360044984,1746514249317,-890.52,0.00019999,2]
[360044985,1746514249326,-611.56,0.00019999,2]
[360044986,1746514249336,-890.52,0.00019999,2]
[360044987,1746514249345,-890.52,0.00019999,2]
[360044988,1746514249354,-611.56,0.00019999,2]
[360044989,1746514249363,-611.56,0.00019999,2]
[360044990,1746514249373,-890.52,0.00019999,2]
[360044991,1746514249382,-611.56,0.00019999,2]
[360044992,1746514249391,-890.52,0.00019999,2]
[360044993,1746514249401,-890.52,0.00019999,2]
[360044994,1746514249411,-611.56,0.00019999,2]
[360044995,1746514249420,-890.52,0.00019999,2]
[360044996,1746514249430,-611.56,0.00019999,2]
[360044997,1746514249440,-890.52,0.00019999,2]
[360044998,1746514249450,-890.52,0.00019999,2]
[360044999,1746514249460,-611.56,0.00019999,2]
[360045000,1746514249470,-890.52,0.00019999,2]
[360045001,1746514249480,-611.56,0.00019999,2]
[360045002,1746514249489,-890.52,0.00019999,2]
[360045003,1746514249499,-611.56,0.00019999,2]
[360045004,1746514249509,-890.52,0.00019999,2]
[360045005,1746514249519,-890.62168789,0.00019999,2]
[360045006,1746514249529,-611.56,0.00019999,2]
[360045007,1746514249538,-611.56,0.00019999,2]
[360045008,1746514249548,-611.78,0.00019999,2]
[360045009,1746514249558,-450.0,0.00019999,2]
[360045010,1746514249568,-450.0,0.00019999,2]
[360045011,1746514249578,-545.56309134,0.00019999,2]
[360045012,1746514249587,-450.0,0.00019999,2]
[360045013,1746514249597,-457.82952224,0.00019999,2]
[360045014,1746514249607,-151.0,0.00019999,2]
[360045015,1746514249617,-151.0,0.00019999,2]
[360045016,1746514249626,-151.0,0.00019999,2]
[360045017,1746514249636,-152.739456,0.00019999,2]
[360045018,1746514249646,-151.0,0.00019999,2]
[360045019,1746514249656,-151.0,0.00019999,2]
[360045020,1746514249665,-151.0,0.00019999,2]
[360045021,1746514249675,-151.0,0.00019999,2]
[360045022,1746514249684,-450.0,0.00019999,2]
[360045023,1746514249693,-450.0,0.00019999,2]
[360045024,1746514249704,-151.0,0.00019999,2]
[360045025,1746514249715,-154.932304,0.00019999,2]
[360045026,1746514249725,-450.0,0.00019999,2]
[360045027,1746514249734,-17597.83,0.00019999,2]
[360045028,1746514249747,-17597.83,0.00019999,2]
[360045029,1746514249756,-17597.83,0.00019999,2]
[360045030,1746514249766,-17597.83,0.00019999,2]
[360045031,1746514249775,-17597.83,0.00019999,2]
[360045032,1746514249785,-17597.83,0.00019999,2]
[360045033,1746514249794,-17597.83,0.00019999,2]
[360045034,1746514249803,-151.0,0.00019999,2]
[360045035,1746514249813,-454.48,0.00019999,2]
[360045036,1746514249823,-17597.83,0.00019999,2]
[360045037,1746514249832,-450.0,0.00019999,2]
[360045038,1746514249841,-151.0,0.00019999,2]
[360045040,1746514249851,-17597.83,0.00019999,2]
[360045041,1746514249861,-450.0,0.00019999,2]
[360045042,1746514249870,-17597.83,0.00019999,2]
[360045043,1746514249880,-17597.83,0.00019999,2]
[360045045,1746514249890,-218.1332456,0.00019999,2]
[360045046,1746514249899,-17597.83,0.00019999,2]
[360045047,1746514249908,-17597.83,0.00019999,2]
[360045048,1746514249917,-17597.83,0.00019999,2]
[360045049,1746514249927,-17597.83,0.00019999,2]
[360045050,1746514249938,-550.65034197,0.00019999,2]
[360045051,1746514250313,-98.94067496,0.00019998,2]
[360045052,1746514250328,-351.05932504,0.00019998,2]
[360045053,1746514250338,-17047.17965803,0.00019999,2]
[360045054,1746514250347,-17597.83,0.00019999,2]
[360045055,1746514250357,-17597.83,0.00019999,2]
[360045056,1746514250366,-2616.57950209,0.00019999,2]
[360045057,1746514250522,-2260.76583272,0.00019999,2]
[360045058,1746514250534,-292.37499975,0.00019999,2]
[360045059,1746514250590,-1064.68800062,0.00019999,2]
[360045060,1746514250601,-7737.52,0.00019999,2]
[360045066,1746514324945,1000.0,0.00019074,2]
[360045068,1746514557336,207.46,0.00019017,2]
[360045069,1746514635698,158.28,0.00018997,2]
[360045073,1746514644870,23890.0,0.00018997,2]
[360045075,1746514677336,554.97,0.00017079,2]
[360045076,1746514677542,554.97,0.00019343,2]
[360045077,1746514692126,10300.0,0.000187,2]
[360045079,1746514820002,851.250491,0.000299,30]
[360045080,1746514826792,250.0,0.0001949,2]
[360045082,1746515076137,231.55,0.00018954,2]
[360045083,1746515106681,157.29,0.00018965,2]
[360045084,1746515106895,157.29,0.00018972,2]
[360045085,1746515107292,157.29,0.00018979,2]
[360045086,1746515107520,157.29,0.00018986,2]
[360045087,1746515107723,157.29,0.00018992,2]
[360045088,1746515107932,157.29,0.00018999,2]
[360045089,1746515108156,157.29,0.00019006,2]
[360045090,1746515108370,157.29,0.00019013,2]
[360045091,1746515108581,157.29,0.00019019,2]
[360045092,1746515108783,157.29,0.00019026,2]
[360045093,1746515108995,157.29,0.00019033,2]
[360045094,1746515109200,157.29,0.0001904,2]
[360045095,1746515109402,157.29,0.00019046,2]
[360045096,1746515109623,157.29,0.00019053,2]
[360045097,1746515109824,157.29,0.0001906,2]
[360045098,1746515134900,200.0,0.00018959,2]
[360045147,1746515265809,250.0,0.00017,2]
[360045148,1746515266943,300.0,0.00019,2]
[360045170,1746515432118,-165.13,0.00019534,2]
[360045171,1746515432128,-250.0,0.00019567,2]
[360045172,1746515432137,-200.0,0.00019567,2]
[360045173,1746515432147,-83.9106038,0.000196,2]
[360045174,1746515432159,-116.0893962,0.000196,2]
[360045175,1746515432169,-200.0,0.00019697,2]
[360045176,1746515432178,-914.28205549,0.00019781,2]
[360045177,1746515432190,-275.65034164,0.00019781,2]
[360045185,1746515438298,-10.06760287,0.00019781,2]
[360045186,1746515438308,-300.0,0.00019781,2]
[360045187,1746515438317,-207.4,0.00019782,2]
[360045188,1746515438325,-29.19567152,0.00019782,2]
[360045190,1746515440422,-40787.11824122,0.00019782,2]
[360045191,1746515440432,-2500.0,0.00019794,2]
[360045192,1746515440441,-154.94330904,0.000198,2]
[360045193,1746515440450,-243.07936995,0.00019865,2]
[360045194,1746515440460,-2500.0,0.00019886,2]
[360045195,1746515440469,-1170.1784,0.00019897,2]
[360045196,1746515440479,-571.17732568,0.00019898,2]
[360045197,1746515440490,-2500.0,0.00019898,2]
[360045198,1746515440499,-174.76015095,0.00019899,2]
[360045199,1746515440509,-174.76015095,0.00019899,2]
[360045200,1746515440518,-174.76015095,0.000199,2]
[360045201,1746515440527,-231.4983199,0.000199,2]
[360045202,1746515440537,-1000.0,0.000199,2]
[360045203,1746515440546,-863.97595693,0.000199,2]
[360045204,1746515440556,-453.5115,0.000199,2]
[360045205,1746515440565,-174.76015095,0.000199,2]
[360045206,1746515440574,-2186.379,0.00019949,2]
[360045207,1746515440583,-5933.0,0.00019949,2]
[360045208,1746515440593,-153.0,0.00019949,2]
[360045209,1746515440603,-500.0,0.00019973,2]
[360045210,1746515440612,-1503.8360821,0.00019986,2]
[360045211,1746515440622,-62344.602661,0.00019986,2]
[360045212,1746515440631,-1944.4998432,0.00019986,2]
[360045213,1746515440641,-450.0,0.00019995,2]
[360045214,1746515440650,-450.0,0.00019995,2]
[360045215,1746515440661,-450.0,0.00019995,2]
[360045216,1746515440671,-450.0,0.00019995,2]
[360045217,1746515440681,-229.88324052,0.00019995,2]
[360045218,1746515440691,-450.0,0.00019995,2]
[360045219,1746515440700,-450.0,0.00019995,2]
[360045220,1746515440709,-464.35,0.00019995,2]
[360045221,1746515440719,-450.0,0.00019995,2]
[360045222,1746515440728,-1078.12,0.00019995,2]
[360045223,1746515440738,-450.0,0.00019995,2]
[360045224,1746515440748,-450.0,0.00019995,2]
[360045225,1746515440757,-450.0,0.00019995,2]
[360045226,1746515440767,-450.0,0.00019995,2]
[360045227,1746515440777,-450.0,0.00019996,2]
[360045228,1746515440787,-450.0,0.00019996,2]
[360045229,1746515440797,-450.0,0.00019996,2]
[360045230,1746515440807,-2016.152,0.00019996,2]
[360045231,1746515440816,-182.719,0.00019996,2]
[360045232,1746515440826,-450.0,0.00019996,2]
[360045233,1746515440836,-450.0,0.00019997,2]
[360045234,1746515440845,-450.0,0.00019997,2]
[360045235,1746515440855,-450.0,0.00019997,2]
[360045236,1746515440864,-450.0,0.00019997,2]
[360045237,1746515440874,-465.97249816,0.00019997,2]
[360045238,1746515440883,-450.0,0.00019997,2]
[360045239,1746515440893,-450.0,0.00019997,2]
[360045240,1746515440902,-450.0,0.00019997,2]
[360045241,1746515440911,-450.0,0.00019997,2]
[360045242,1746515440921,-450.0,0.00019997,2]
[360045243,1746515440930,-450.0,0.00019997,2]
[360045244,1746515440939,-177.49,0.00019997,2]
[360045245,1746515440949,-450.0,0.00019997,2]
[360045246,1746515440958,-1078.12,0.00019997,2]
[360045247,1746515440967,-287.09065287,0.00019997,2]
[360045248,1746515440977,-450.0,0.00019997,2]
[360045249,1746515440987,-450.0,0.00019997,2]
[360045250,1746515440997,-450.0,0.00019997,2]
[360045251,1746515441006,-450.0,0.00019997,2]
[360045252,1746515441016,-323.09118242,0.00019997,2]
[360045253,1746515441026,-450.0,0.00019997,2]
[360045254,1746515441035,-450.0,0.00019997,2]
[360045255,1746515441045,-450.0,0.00019997,2]
[360045256,1746515441054,-537.64366022,0.00019997,2]
[360045257,1746515441064,-13822.49,0.00019997,2]
[360045258,1746515441073,-450.0,0.00019997,2]
[360045259,1746515441082,-450.0,0.00019997,2]
[360045260,1746515441091,-467.34,0.00019997,2]
[360045261,1746515441101,-450.0,0.00019997,2]
[360045262,1746515441110,-450.0,0.00019997,2]
[360045263,1746515441120,-450.0,0.00019997,2]
[360045264,1746515441130,-450.0,0.00019997,2]
[360045265,1746515441139,-450.0,0.00019997,2]
[360045266,1746515441149,-268.21952982,0.00019997,2]
[360045267,1746515441159,-450.0,0.00019997,2]
[360045268,1746515441168,-450.0,0.00019997,2]
[360045269,1746515441178,-450.0,0.00019997,2]
[360045270,1746515441187,-450.0,0.00019997,2]
[360045271,1746515441197,-450.0,0.00019997,2]
[360045272,1746515441206,-194.90395162,0.00019997,2]
[360045273,1746515441216,-527.69362067,0.00019997,2]
[360045274,1746515441225,-283.17312793,0.00019997,2]
[360045275,1746515441235,-450.0,0.00019997,2]
[360045276,1746515441244,-450.0,0.00019997,2]
[360045277,1746515441254,-450.0,0.00019997,2]
[360045278,1746515441264,-450.0,0.00019997,2]